fUST/lending_fUST_20240116
["ID","MTS","AMOUNT","RATE_DAILY","PERIOD"]
[311745122,1705374641148,-1571.81,0.00024033,2]
[311745124,1705374641157,-500.0,0.00024033,2]
[311745126,1705374641166,-1537.75,0.00024033,2]
[311745128,1705374641176,-8387.89,0.00024033,2]
[311745130,1705374641187,-500.0,0.00024034,2]
[311745133,1705374641197,-1093.88,0.00024034,2]
[311745135,1705374641206,-500.0,0.0002407,2]
[311745137,1705374641217,-500.0,0.00024071,2]
[311745138,1705374641227,-500.0,0.00024071,2]
[311745141,1705374641237,-500.0,0.00024071,2]
[311745143,1705374641247,-500.0,0.00024071,2]
[311745145,1705374641257,-566.48,0.00024071,2]
[311745147,1705374641266,-2077.39,0.00024071,2]
[311745148,1705374641276,-500.0,0.00024071,2]
[311745151,1705374641285,-500.0,0.00024071,2]
[311745152,1705374641295,-500.0,0.00024071,2]
[311745155,1705374641305,-500.0,0.00024071,2]
[311745156,1705374641313,-500.0,0.00024072,2]
[311745158,1705374641322,-692.45,0.00024072,2]
[311745160,1705374641332,-500.0,0.00024072,2]
[311745162,1705374641341,-534.87,0.00024072,2]
[311745164,1705374641349,-500.0,0.00024072,2]
[311745166,1705374641359,-500.0,0.00024072,2]
[311745168,1705374641368,-977.41,0.00024072,2]
[311745170,1705374641377,-500.0,0.00024072,2]
[311745172,1705374641386,-500.0,0.00024072,2]
[311745175,1705374641395,-693.01,0.00024306,2]
[311745177,1705374641404,-500.0,0.00024306,2]
[311745179,1705374641413,-1254.32,0.00024307,2]
[311745181,1705374641422,-504.95,0.00024307,2]
[311745182,1705374641431,-2649.27,0.00024307,2]
[311745185,1705374641440,-2101.13,0.00024307,2]
[311745187,1705374641450,-507.76,0.00024307,2]
[311745189,1705374641458,-1135.07,0.00024307,2]
[311745191,1705374641467,-5671.64,0.00024307,2]
[311745193,1705374641476,-462.69605503,0.00024307,2]
[311745194,1705374641485,-553.58,0.00024307,2]
[311745196,1705374641494,-500.0,0.00024307,2]
[311745199,1705374641503,-1571.81,0.00024307,2]
[311745200,1705374641513,-500.0,0.00024307,2]
[311745202,1705374641522,-1537.75,0.00024307,2]
[311745204,1705374641531,-8387.89,0.00024307,2]
[311745207,1705374641540,-500.0,0.00024308,2]
[311745208,1705374641551,-1093.88,0.00024308,2]
[311745210,1705374641561,-200.0,0.0002432,7]
[311745212,1705374641570,-500.0,0.00024344,2]
[311745214,1705374641579,-500.0,0.00024345,2]
[311745217,1705374641589,-500.0,0.00024345,2]
[311745219,1705374641598,-500.0,0.00024345,2]
[311745220,1705374641607,-500.0,0.00024345,2]
[311745222,1705374641617,-566.48,0.00024345,2]
[311745224,1705374641626,-2077.39,0.00024345,2]
[311745226,1705374641635,-500.0,0.00024345,2]
[311745229,1705374641644,-500.0,0.00024345,2]
[311745231,1705374641654,-500.0,0.00024345,2]
[311745233,1705374641663,-500.0,0.00024346,2]
[311745243,1705374641749,-692.45,0.00024346,2]
[311745245,1705374641758,-345.24240155,0.00024346,2]
[311745247,1705374641768,-534.87,0.00024346,2]
[311745249,1705374641777,-500.0,0.00024346,2]
[311745251,1705374641785,-454.92289088,0.00024346,2]
[311745253,1705374641795,-977.41,0.00024346,2]
[311745255,1705374641804,-500.0,0.00024346,2]
[311745257,1705374641814,-500.0,0.00024346,2]
[311745259,1705374641823,-153.2565765,0.00024384,2]
[311745261,1705374641833,-154.7203108,0.00024384,2]
[311745263,1705374641842,-153.2749664,0.00024384,2]
[311745265,1705374641851,-219.0517995,0.00024396,2]
[311745267,1705374641860,-167.172641,0.00024482,2]
[311745269,1705374641870,-693.01,0.0002458,2]
[311745271,1705374641879,-500.0,0.0002458,2]
[311745273,1705374641888,-1254.32,0.00024581,2]
[311745275,1705374641898,-504.95,0.00024581,2]
[311745277,1705374641907,-2649.27,0.00024581,2]
[311745279,1705374641917,-2101.13,0.00024581,2]
[311745281,1705374641926,-507.76,0.00024581,2]
[311745283,1705374641934,-1135.07,0.00024581,2]
[311745285,1705374641944,-5671.64,0.00024581,2]
[311745287,1705374641952,-553.58,0.00024581,2]
[311745289,1705374641962,-500.0,0.00024581,2]
[311745291,1705374641970,-1571.81,0.00024581,2]
[311745293,1705374641980,-500.0,0.00024581,2]
[311745295,1705374641989,-1537.75,0.00024581,2]
[311745297,1705374641998,-8387.89,0.00024581,2]
[311745299,1705374642007,-500.0,0.00024582,2]
[311745302,1705374642017,-1093.88,0.00024582,2]
[311745304,1705374642030,-500.0,0.00024618,2]
[311745305,1705374642040,-500.0,0.00024619,2]
[311745307,1705374642049,-500.0,0.00024619,2]
[311745310,1705374642061,-500.0,0.00024619,2]
[311745311,1705374642069,-500.0,0.00024619,2]
[311745313,1705374642078,-566.48,0.00024619,2]
[311745315,1705374642087,-2077.39,0.00024619,2]
[311745317,1705374642096,-500.0,0.00024619,2]
[311745319,1705374642105,-500.0,0.00024619,2]
[311745321,1705374642114,-500.0,0.00024619,2]
[311745323,1705374642123,-500.0,0.0002462,2]
[311745325,1705374642132,-692.45,0.0002462,2]
[311745327,1705374642141,-534.87,0.0002462,2]
[311745329,1705374642150,-500.0,0.0002462,2]
[311745331,1705374642160,-977.41,0.0002462,2]
[311745333,1705374642169,-500.0,0.0002462,2]
[311745335,1705374642178,-500.0,0.0002462,2]
[311745337,1705374642186,-388.5668798,0.00024657,2]
[311745339,1705374642195,-380.0,0.00024658,2]
[311745341,1705374642204,-500.0,0.00024792,2]
[311745343,1705374642214,-637.27491802,0.00024792,2]
[311745345,1705374642223,-500.0,0.00024792,2]
[311745347,1705374642232,-428.01144569,0.00024792,2]
[311745349,1705374642241,-462.17393285,0.00024792,2]
[311745351,1705374642250,-500.0,0.00024792,2]
[311745353,1705374642259,-246.46348274,0.00024792,2]
[311745755,1705374646203,-500.0,0.00022701,2]
[311745757,1705374646214,-500.0,0.00022975,2]
[311745759,1705374646223,-500.0,0.00023249,2]
[311745761,1705374646232,-500.0,0.00023523,2]
[311745763,1705374646241,-500.0,0.00023797,2]
[311745765,1705374646250,-500.0,0.00024071,2]
[311745767,1705374646260,-500.0,0.00024345,2]
[311745769,1705374646269,-1219.8730355,0.00024793,2]
[311748234,1705375178273,-216.27988872,0.00021682,2]
[311748235,1705375178561,-4.41387528,0.00021682,2]
[311748238,1705375327659,2220.83180826,0.00016262,5]
[311748240,1705375330205,-607.42329935,0.00021682,2]
[311748241,1705375330328,-12.39639386,0.00021682,2]
[311748242,1705375337846,-2039.48920699,0.00021682,2]
[311748243,1705375337958,-41.62222871,0.00021682,2]
[311748244,1705375338977,200.0,0.00021682,2]
[311748285,1705375832390,-688.53642166,0.00021917,2]
[311748287,1705375832401,-166.919654,0.00021918,2]
[311748288,1705375832410,-393.16979079,0.00022246,2]
[311748290,1705375832422,-10137.79263349,0.00022658,2]
[311748292,1705375832431,-2031.79600429,0.00022659,2]
[311748294,1705375832440,-3126.02728391,0.00022661,2]
[311748295,1705375832451,-500.0,0.00022662,2]
[311748296,1705375832460,-500.0,0.00022662,2]
[311748297,1705375832470,-500.0,0.00022662,2]
[311748299,1705375832479,-500.0,0.00022662,2]
[311748301,1705375832489,-2207.72,0.00022662,2]
[311748302,1705375832498,-1750.94,0.00022662,2]
[311748303,1705375832508,-500.0,0.00022662,2]
[311748304,1705375832517,-945.89,0.00022662,2]
[311748305,1705375832526,-500.0,0.00022662,2]
[311748306,1705375832536,-500.0,0.00022662,2]
[311748307,1705375832545,-500.0,0.00022662,2]
[311748308,1705375832555,-773.78,0.00022662,2]
[311748309,1705375832564,-500.0,0.00022662,2]
[311748310,1705375832573,-610.42,0.00022662,2]
[311748311,1705375832583,-503.37156791,0.00022662,2]
[311748312,1705375832592,-1281.46,0.00022662,2]
[311748313,1705375832602,-2004.1,0.00022689,3]
[311748314,1705375832611,-1670.09,0.00022689,3]
[311748315,1705375832621,-1391.74,0.00022689,3]
[311748316,1705375832630,-27146.07488,0.00022699,2]
[311748364,1705375838386,-7165.36315375,0.00022699,2]
[311748371,1705375838443,-15688.56196625,0.00022699,2]
[311748373,1705375838455,-500.0,0.000227,2]
[311748375,1705375838464,-500.0,0.000227,2]
[311748377,1705375838474,-500.0,0.000227,2]
[311748380,1705375838486,-500.0,0.000227,2]
[311748382,1705375838498,-500.0,0.000227,2]
[311748384,1705375838509,-576.99524827,0.000227,2]
[311748386,1705375838520,-500.0,0.000227,2]
[311748389,1705375838532,-500.0,0.00022701,2]
[311748391,1705375838542,-500.0,0.00022701,2]
[311748393,1705375838553,-500.0,0.00022701,2]
[311748395,1705375838563,-774.83,0.00022701,2]
[311748396,1705375838575,-500.0,0.00022701,2]
[311748398,1705375838586,-500.0,0.00022936,2]
[311748400,1705375838598,-500.0,0.00022936,2]
[311748403,1705375838609,-500.0,0.00022936,2]
[311748405,1705375838622,-500.0,0.00022936,2]
[311748407,1705375838633,-2207.72,0.00022936,2]
[311748409,1705375838645,-1750.94,0.00022936,2]
[311748412,1705375838657,-500.0,0.00022936,2]
[311748414,1705375838669,-945.89,0.00022936,2]
[311748416,1705375838680,-500.0,0.00022936,2]
[311748418,1705375838690,-500.0,0.00022936,2]
[311748420,1705375838700,-500.0,0.00022936,2]
[311748422,1705375838710,-321.7911667,0.00022936,2]
[311748698,1705375841673,-451.9888333,0.00022936,2]
[311748701,1705375841684,-500.0,0.00022936,2]
[311748703,1705375841694,-610.42,0.00022936,2]
[311748705,1705375841704,-867.21874348,0.00022936,2]
[311748843,1705375843401,-414.24125652,0.00022936,2]
[311748858,1705375843531,-500.0,0.00022974,2]
[311748860,1705375843542,-454.92289088,0.00022974,2]
[311748862,1705375843551,-500.0,0.00022974,2]
[311748864,1705375843560,-500.0,0.00022974,2]
[311748866,1705375843569,-500.0,0.00022974,2]
[311748868,1705375843578,-500.0,0.00022975,2]
[311748870,1705375843587,-500.0,0.00022975,2]
[311748872,1705375843595,-52.42293821,0.00022975,2]
[311751538,1705375906910,2750.0,0.00029,30]
[311751543,1705376140413,262.11319386,0.00020836,2]
[311751547,1705376291211,225020.62230933,0.00020836,2]
[311751548,1705376299496,1014.10756606,0.00022655,7]
[311751552,1705376404499,155.05582134,0.0002,2]
[311751580,1705376741724,174.74212924,0.000189,2]
[311751585,1705376912360,-521.56474162,0.00021785,2]
[311751586,1705376912386,-171.0815936,0.00021786,2]
[311751587,1705376912691,-14.13563949,0.00021786,2]
[311751625,1705377032556,-166.49194019,0.00021861,2]
[311751627,1705377032567,-587.69337227,0.00021861,2]
[311751629,1705377032578,-265.17316285,0.00021862,2]
[311751631,1705377032588,-154.98450155,0.00021863,2]
[311751633,1705377032600,-329.183235,0.00021863,2]
[311751635,1705377032610,-1196.44070962,0.00021864,2]
[311751638,1705377032621,-56.40473712,0.00021865,2]
[311751818,1705377038693,-205.6432843,0.00021865,2]
[311751820,1705377038703,-1292.34076145,0.00021866,2]
[311751821,1705377038712,-164.42093675,0.0002191,2]
[311751822,1705377038723,-594.38972109,0.0002191,2]
[311751824,1705377038731,-343.54524538,0.0002191,2]
[311751826,1705377038740,-2435.82597973,0.0002191,2]
[311751828,1705377038749,-284.16809765,0.0002191,2]
[311751829,1705377038758,-500.0,0.0002191,2]
[311751831,1705377038767,-323.12147464,0.0002191,2]
[311751832,1705377038776,-303.13804304,0.0002191,2]
[311751833,1705377038785,-155.39563687,0.00021911,2]
[311751835,1705377038794,-156.40375946,0.00021911,2]
[311751837,1705377038803,-9523.45881441,0.00021912,2]
[311751839,1705377038812,-166.666666,0.00021918,2]
[311751841,1705377038821,-1050.84836442,0.00021998,2]
[311751843,1705377038830,-1955.20901272,0.00021999,5]
[311751845,1705377038840,-162.81745454,0.00021999,2]
[311751847,1705377038849,-10137.79263349,0.00022,2]
[311751849,1705377038858,-470.14941068,0.00022423,2]
[311751851,1705377038867,-229.90854817,0.00022423,2]
[311751853,1705377038877,-307.41403033,0.00022425,2]
[311751855,1705377038886,-11796.67558058,0.00022425,2]
[311751856,1705377038895,-23918.36920527,0.00022427,2]
[311751857,1705377038906,-166.666666,0.00022431,2]
[311751858,1705377038916,-1159.78,0.00022603,3]
[311751859,1705377038925,-966.49,0.00022603,3]
[311751860,1705377038934,-50000.0,0.00022613,2]
[311751861,1705377038944,-467.58133257,0.00022654,2]
[311751862,1705377038953,-155.69292077,0.00022655,2]
[311751863,1705377038963,-5484.47,0.00022696,2]
[311751864,1705377038973,-500.0,0.00022697,2]
[311751865,1705377038981,-500.0,0.00022697,2]
[311751866,1705377038990,-500.0,0.00022697,2]
[311751867,1705377039000,-636.78,0.00022697,2]
[311751868,1705377039010,-1219.25,0.00022697,2]
[311751869,1705377039019,-500.0,0.00022697,2]
[311751870,1705377039028,-500.0,0.00022698,2]
[311751871,1705377039037,-572.48,0.00022698,2]
[311751872,1705377039046,-508.87051683,0.00022698,2]
[311751873,1705377039055,-500.0,0.00022698,2]
[311751874,1705377039064,-923.17,0.00022698,2]
[311751875,1705377039073,-501.15109993,0.00022698,2]
[311751876,1705377039082,-500.0,0.00022698,2]
[311751877,1705377039091,-1511.34,0.00022698,2]
[311751878,1705377039101,-500.0,0.000227,2]
[311751879,1705377039109,-504.05140397,0.000227,2]
[311751880,1705377039119,-550.76,0.000227,2]
[311751881,1705377039128,-505.66080115,0.000227,2]
[311751882,1705377039137,-501.92101031,0.000227,2]
[311751883,1705377039147,-512.75232419,0.000227,2]
[311751884,1705377039156,-502.31553318,0.000227,2]
[311751885,1705377039165,-510.74979088,0.000227,2]
[311751886,1705377039174,-500.0,0.000227,2]
[311751887,1705377039183,-1576.94,0.000227,2]
[311751888,1705377039192,-8122.34,0.000227,2]
[311751889,1705377039202,-500.0,0.000227,2]
[311751890,1705377039211,-503.36381833,0.000227,2]
[311751891,1705377039221,-500.0,0.000227,2]
[311751892,1705377039230,-500.0,0.000227,2]
[311751893,1705377039239,-320.89029073,0.000227,2]
[311751894,1705377039249,-2170.17,0.000227,2]
[311751895,1705377039258,-505.48514853,0.00022701,2]
[311751896,1705377039272,-505.57110201,0.00022701,2]
[311751897,1705377039281,-500.0,0.00022701,2]
[311751898,1705377039291,-500.84437692,0.00022701,2]
[311751899,1705377039300,-505.00467186,0.00022701,2]
[311751900,1705377039309,-217.60980146,0.00022874,2]
[311751901,1705377039318,-542.83513717,0.00022935,2]
[311751902,1705377039328,-500.0,0.00022936,2]
[311751903,1705377039337,-166.666666,0.00022944,2]
[311751904,1705377039347,-5484.47,0.0002297,2]
[311751905,1705377039357,-500.0,0.00022971,2]
[311751906,1705377039367,-500.0,0.00022971,2]
[311751907,1705377039376,-636.78,0.00022971,2]
[311751908,1705377039386,-1219.25,0.00022971,2]
[311751909,1705377039397,-500.0,0.00022971,2]
[311751910,1705377039407,-500.0,0.00022972,2]
[311751911,1705377039416,-572.48,0.00022972,2]
[311751912,1705377039426,-500.0,0.00022972,2]
[311751913,1705377039435,-923.17,0.00022972,2]
[311751914,1705377039445,-500.0,0.00022972,2]
[311751915,1705377039454,-1511.34,0.00022972,2]
[311751916,1705377039463,-500.0,0.00022974,2]
[311751917,1705377039476,-550.76,0.00022974,2]
[311751918,1705377039486,-500.0,0.00022974,2]
[311751919,1705377039495,-1576.94,0.00022974,2]
[311751920,1705377039504,-8122.34,0.00022974,2]
[311751921,1705377039514,-500.0,0.00022974,2]
[311751922,1705377039523,-500.0,0.00022974,2]
[311751923,1705377039532,-500.0,0.00022974,2]
[311751924,1705377039542,-2170.17,0.00022974,2]
[311751925,1705377039551,-638.67211561,0.00022976,2]
[311751926,1705377039561,-155.02790502,0.00023208,2]
[311751927,1705377039570,-677.43954104,0.00023208,2]
[311751928,1705377039580,-1576.96754057,0.00023208,2]
[311751929,1705377039589,-155.02790502,0.00023208,2]
[311751930,1705377039598,-261.56551875,0.00023208,2]
[311751931,1705377039608,-155.02790502,0.00023208,2]
[311751932,1705377039617,-525.94938835,0.00023208,2]
[311751933,1705377039627,-155.29470362,0.00023208,2]
[311751934,1705377039636,-341.60143724,0.00023208,2]
[311751935,1705377039645,-155.30882626,0.00023208,2]
[311751936,1705377039654,-500.0,0.00023208,2]
[311751937,1705377039663,-557.26811774,0.00023208,2]
[311751938,1705377039672,-500.0,0.00023208,2]
[311751939,1705377039681,-500.0,0.00023208,2]
[311751940,1705377039691,-500.0,0.00023208,2]
[311751941,1705377039700,-500.0,0.00023208,2]
[311751942,1705377039709,-500.0,0.00023208,2]
[311751943,1705377039722,-500.0,0.00023208,2]
[311751944,1705377039735,-500.0,0.00023208,2]
[311751945,1705377039745,-796.22,0.00023208,2]
[311751946,1705377039754,-506.13508093,0.00023209,2]
[311751947,1705377039765,-492.2051531,0.00023209,2]
[311751948,1705377039774,-500.0,0.00023209,2]
[311751949,1705377039783,-500.0,0.00023209,2]
[311751950,1705377039793,-500.0,0.00023209,2]
[311751951,1705377039802,-500.0,0.00023209,2]
[311751952,1705377039812,-504.01279146,0.00023209,2]
[311751953,1705377039821,-500.0,0.00023209,2]
[311751954,1705377039830,-500.0,0.00023209,2]
[311751955,1705377039839,-500.0,0.00023209,2]
[311751956,1705377039848,-500.0,0.00023209,2]
[311751957,1705377039857,-500.0,0.00023209,2]
[311751958,1705377039867,-500.0,0.00023209,2]
[311751959,1705377039876,-505.9709341,0.00023209,2]
[311751960,1705377039884,-500.0,0.00023209,2]
[311751961,1705377039894,-501.74296753,0.00023209,2]
[311751962,1705377039903,-502.15842062,0.00023209,2]
[311751963,1705377039912,-500.0,0.00023209,2]
[311751964,1705377039922,-505.63078518,0.00023209,2]
[311751965,1705377039931,-503.16045617,0.00023209,2]
[311751966,1705377039940,-507.36095942,0.00023209,2]
[311751967,1705377039949,-499.29904429,0.00023209,2]
[311751968,1705377039958,-500.0,0.00023209,2]
[311751969,1705377039968,-535.01,0.00023209,2]
[311751970,1705377039977,-503.1904266,0.00023209,2]
[311751971,1705377039986,-505.48,0.00023209,2]
[311751972,1705377039995,-733.48,0.00023209,2]
[311751973,1705377040004,-502.36022339,0.00023209,2]
[311751974,1705377040014,-506.44408813,0.00023209,2]
[311751975,1705377040023,-386.81162016,0.00023209,2]
[311751976,1705377040032,-500.0,0.00023209,2]
[311751977,1705377040041,-500.0,0.00023209,2]
[311751978,1705377040051,-527.26028654,0.00023209,2]
[311751979,1705377040060,-500.0,0.00023209,2]
[311751980,1705377040070,-500.0,0.00023209,2]
[311751981,1705377040079,-500.0,0.00023209,2]
[311751982,1705377040088,-500.0,0.00023209,2]
[311751983,1705377040097,-500.0,0.00023209,2]
[311751984,1705377040106,-503.44180302,0.00023209,2]
[311751985,1705377040115,-280.0,0.00023209,2]
[311751986,1705377040124,-500.0,0.00023209,2]
[311751987,1705377040133,-500.78271219,0.00023209,2]
[311751988,1705377040142,-320.22571958,0.00023209,2]
[311751989,1705377040151,-500.0,0.00023209,2]
[311751990,1705377040161,-500.0,0.00023209,2]
[311751991,1705377040170,-500.0,0.0002321,2]
[311751992,1705377040179,-500.0,0.0002321,2]
[311751993,1705377040188,-501.8628807,0.0002321,2]
[311751994,1705377040198,-500.0,0.0002321,2]
[311751995,1705377040207,-500.0,0.0002321,2]
[311751996,1705377040216,-500.0,0.0002321,2]
[311751997,1705377040225,-504.57188691,0.0002321,2]
[311751998,1705377040234,-500.0,0.0002321,2]
[311751999,1705377040243,-920.06,0.0002321,2]
[311752000,1705377040253,-993.324617,0.0002321,2]
[311752001,1705377040261,-993.324617,0.0002321,2]
[311752002,1705377040271,-151.0,0.0002321,2]
[311752003,1705377040279,-1882.608869,0.0002321,2]
[311752004,1705377040288,-1882.608869,0.0002321,2]
[311752005,1705377040297,-5484.47,0.00023244,2]
[311752006,1705377040306,-500.0,0.00023245,2]
[311752007,1705377040315,-500.0,0.00023245,2]
[311752008,1705377040325,-636.78,0.00023245,2]
[311752009,1705377040336,-1219.25,0.00023245,2]
[311752010,1705377040346,-500.0,0.00023246,2]
[311752011,1705377040355,-572.48,0.00023246,2]
[311752012,1705377040365,-500.0,0.00023246,2]
[311752013,1705377040376,-923.17,0.00023246,2]
[311752014,1705377040385,-500.0,0.00023246,2]
[311752015,1705377040395,-1511.34,0.00023246,2]
[311752016,1705377040404,-1882.608869,0.00023248,2]
[311752017,1705377040415,-1882.608869,0.00023248,2]
[311752018,1705377040425,-550.76,0.00023248,2]
[311752019,1705377040434,-517.52867803,0.00023248,2]
[311752020,1705377040443,-1576.94,0.00023248,2]
[311752021,1705377040452,-8122.34,0.00023248,2]
[311752022,1705377040461,-500.0,0.00023248,2]
[311752023,1705377040472,-500.0,0.00023248,2]
[311752024,1705377040481,-2170.17,0.00023248,2]
[311752025,1705377040490,-217.60980142,0.00023251,2]
[311752026,1705377040499,-166.666666,0.00023456,2]
[311752027,1705377040508,-500.0,0.00023482,2]
[311752028,1705377040517,-487.90388007,0.00023482,2]
[311752029,1705377040527,-500.0,0.00023482,2]
[311752030,1705377040536,-500.0,0.00023482,2]
[311752031,1705377040545,-500.0,0.00023482,2]
[311752032,1705377040554,-500.0,0.00023482,2]
[311752033,1705377040564,-796.22,0.00023482,2]
[311752034,1705377040573,-500.0,0.00023483,2]
[311752036,1705377040582,-500.0,0.00023483,2]
[311752037,1705377040591,-500.0,0.00023483,2]
[311752042,1705377040600,-500.0,0.00023483,2]
[311752044,1705377040689,-500.0,0.00023483,2]
[311752046,1705377040698,-500.0,0.00023483,2]
[311752048,1705377040707,-500.0,0.00023483,2]
[311752050,1705377040718,-507.92723856,0.00023483,2]
[311752052,1705377040727,-500.0,0.00023483,2]
[311752054,1705377040736,-500.0,0.00023483,2]
[311752056,1705377040745,-535.01,0.00023483,2]
[311752058,1705377040755,-505.48,0.00023483,2]
[311752060,1705377040764,-733.48,0.00023483,2]
[311752062,1705377040773,-500.0,0.00023483,2]
[311752065,1705377040783,-500.0,0.00023483,2]
[311752068,1705377040792,-509.76,0.00023483,2]
[311752070,1705377040800,-500.0,0.00023483,2]
[311752073,1705377040810,-500.0,0.00023483,2]
[311752076,1705377040819,-340.02316457,0.00023483,2]
[311752079,1705377040829,-2683.72,0.00023483,2]
[311752082,1705377040840,-500.0,0.00023483,2]
[311752085,1705377040849,-1934.31,0.00023483,2]
[311752088,1705377040858,-500.0,0.00023483,2]
[311752091,1705377040867,-500.0,0.00023483,2]
[311752094,1705377040876,-500.0,0.00023483,2]
[311752098,1705377040886,-501.46453399,0.00023483,2]
[311752100,1705377040895,-1051.06,0.00023483,2]
[311752103,1705377040904,-993.324617,0.00023483,2]
[311752106,1705377040913,-993.324617,0.00023483,2]
[311752109,1705377040923,-500.85998618,0.00023484,2]
[311752112,1705377040932,-500.0,0.00023484,2]
[311752115,1705377040941,-508.45947769,0.00023484,2]
[311752118,1705377040950,-500.0,0.00023484,2]
[311752121,1705377040960,-502.70951687,0.00023484,2]
[311752124,1705377040970,-500.0,0.00023484,2]
[311752127,1705377040979,-501.48875622,0.00023484,2]
[311752130,1705377040988,-502.81922472,0.00023484,2]
[311752133,1705377040997,-500.0,0.00023484,2]
[311752136,1705377041006,-500.0,0.00023484,2]
[311752139,1705377041015,-501.24793934,0.00023484,2]
[311752142,1705377041024,-500.0,0.00023484,2]
[311752145,1705377041033,-529.70641612,0.00023484,2]
[311752148,1705377041043,-509.86948337,0.00023484,2]
[311752151,1705377041052,-500.0,0.00023484,2]
[311752154,1705377041061,-500.0,0.00023484,2]
[311752157,1705377041070,-504.08665223,0.00023484,2]
[311752160,1705377041079,-454.10383903,0.00023484,2]
[311752163,1705377041089,-505.8073812,0.00023484,2]
[311752166,1705377041097,-500.0,0.00023484,2]
[311752169,1705377041107,-502.40634643,0.00023484,2]
[311752172,1705377041116,-500.0,0.00023484,2]
[311752175,1705377041125,-500.0,0.00023484,2]
[311752178,1705377041134,-501.64942822,0.00023484,2]
[311752181,1705377041143,-505.78868773,0.00023484,2]
[311752183,1705377041152,-214.14446957,0.00023484,2]
[311752185,1705377041161,-500.0,0.00023484,2]
[311752187,1705377041170,-500.0,0.00023484,2]
[311752189,1705377041179,-500.0,0.00023484,2]
[311752191,1705377041188,-504.80258485,0.00023484,2]
[311752193,1705377041197,-500.0,0.00023484,2]
[311752195,1705377041206,-502.51373949,0.00023484,2]
[311752197,1705377041216,-500.0,0.00023484,2]
[311752198,1705377041225,-505.6975568,0.00023484,2]
[311752199,1705377041235,-502.4943258,0.00023484,2]
[311752200,1705377041244,-500.0,0.00023484,2]
[311752201,1705377041253,-500.0,0.00023484,2]
[311752203,1705377041262,-920.06,0.00023484,2]
[311752205,1705377041271,-993.324617,0.00023484,2]
[311752206,1705377041281,-993.324617,0.00023484,2]
[311752208,1705377041290,-1882.608869,0.00023484,2]
[311752209,1705377041299,-1882.608869,0.00023484,2]
[311752211,1705377041308,-5484.47,0.00023518,2]
[311752212,1705377041318,-1882.608869,0.00023519,2]
[311752213,1705377041327,-1882.608869,0.00023519,2]
[311752214,1705377041336,-500.0,0.00023519,2]
[311752215,1705377041346,-500.0,0.00023519,2]
[311752216,1705377041355,-636.78,0.00023519,2]
[311752217,1705377041365,-1219.25,0.00023519,2]
[311752218,1705377041374,-151.0,0.0002352,2]
[311752219,1705377041384,-500.0,0.0002352,2]
[311752220,1705377041393,-572.48,0.0002352,2]
[311752221,1705377041403,-516.97112396,0.0002352,2]
[311752222,1705377041412,-923.17,0.0002352,2]
[311752223,1705377041421,-500.0,0.0002352,2]
[311752224,1705377041430,-1511.34,0.0002352,2]
[311752225,1705377041439,-993.324617,0.00023522,2]
[311752226,1705377041449,-993.324617,0.00023522,2]
[311752227,1705377041458,-550.76,0.00023522,2]
[311752228,1705377041469,-1576.94,0.00023522,2]
[311752229,1705377041478,-8122.34,0.00023522,2]
[311752230,1705377041487,-500.0,0.00023522,2]